fUSD/lending_fUSD_20250804
["ID","MTS","AMOUNT","RATE_DAILY","PERIOD"]
[377275605,1754314240106,-874.49410911,0.00044323,10]
[377275606,1754314240120,-294.64004322,0.00044348,50]
[377275607,1754314240134,-155.22,0.0004444,2]
[377275608,1754314240149,-150.0,0.00044473,10]
[377275609,1754314240163,-151.18,0.0004448,2]
[377275610,1754314240178,-39630.2529449,0.0004449,3]
[377275611,1754314240192,-507.0,0.00044496,10]
[377275612,1754314240206,-1000.0,0.00044499,2]
[377275613,1754314240220,-20269.57759,0.000445,120]
[377275614,1754314240235,-92956.72701179,0.000445,120]
[377275615,1754314240249,-155.22,0.00044589,2]
[377275616,1754314240263,-150.0,0.00044602,2]
[377275617,1754314240282,-380.1,0.00044685,120]
[377275618,1754314240296,-19815.1264724,0.00044699,3]
[377275619,1754314240311,-4302.54547971,0.00044727,15]
[377275620,1754314240325,-155.22,0.00044737,2]
[377275621,1754314240340,-294.64004322,0.00044762,51]
[377275622,1754314240355,-158.91,0.00044803,14]
[377275623,1754314240369,-155.22,0.00044885,2]
[377275624,1754314240383,-4000.0,0.00044922,8]
[377275625,1754314240398,-19815.1264724,0.0004499,3]
[377275626,1754314240412,-30214.80104593,0.00045,2]
[377275627,1754314240426,-152.0,0.00045,120]
[377275628,1754314240440,-160.0,0.00045,33]
[377275629,1754314240455,-160.0,0.00045,46]
[377275630,1754314240469,-160.0,0.00045,51]
[377275631,1754314240485,-152.0,0.00045,120]
[377275632,1754314240500,-160.0,0.00045,61]
[377275633,1754314240514,-160.0,0.00045,58]
[377275634,1754314240529,-160.0,0.00045,43]
[377275635,1754314240544,-457.2201239,0.00045,3]
[377275636,1754314240559,-507.0,0.00045013,10]
[377275637,1754314240573,-250.0,0.00045021,10]
[377275638,1754314240588,-395.34879759,0.0004506,15]
[377275639,1754314240603,-294.64004322,0.00045176,52]
[377275640,1754314240617,-507.0,0.00045529,10]
[377275641,1754314240632,-350.0,0.00045568,10]
[377275642,1754314240646,-294.64004322,0.0004559,52]
[377275643,1754314240659,-165.99,0.00045791,2]
[377275644,1754314240673,-480.82,0.00045858,120]
[377275645,1754314240687,-220.37995172,0.00045873,10]
[377275646,1754314240702,-151.18,0.0004588,2]
[377275647,1754314240716,-59445.3794173,0.0004589,3]
[377275648,1754314240731,-600.0,0.00045897,14]
[377275649,1754314240746,-600.0,0.00045897,14]
[377275650,1754314240760,-503.52,0.00045897,14]
[377275651,1754314240776,-150.0,0.00045899,6]
[377275652,1754314240791,-98116.88043128,0.000459,2]
[377275653,1754314240804,-4302.54547971,0.00045951,15]
[377275654,1754314240820,-900.0,0.00046,2]
[377275655,1754314240834,-160.0,0.00046,120]
[377275656,1754314240849,-160.0,0.00046,90]
[377275657,1754314240863,-160.0,0.00046,60]
[377275658,1754314240877,-376.586706,0.00046,29]
[377275659,1754314240891,-841.59890878,0.00046,10]
[377275660,1754314240904,-457.2201239,0.00046,10]
[377275661,1754314240917,-294.64004322,0.00046003,53]
[377275662,1754314240931,-507.0,0.00046046,10]
[377275663,1754314240945,-152.0,0.000461,120]
[377275664,1754314240960,-450.0,0.00046116,10]
[377275665,1754314240976,-1088.0,0.00046125,120]
[377275666,1754314240989,-380.1,0.00046236,120]
[377275667,1754314241005,-152.0,0.000463,120]
[377275668,1754314241020,-215.77815653,0.00046317,9]
[377275669,1754314241035,-7345.91725939,0.00046317,2]
[377275670,1754314241048,-5202.68456206,0.00046317,2]
[377275671,1754314241063,-280.42402965,0.00046317,90]
[377275672,1754314241076,-395.34879759,0.0004634,15]
[377275673,1754314241091,-151.18,0.0004639,2]
[377275674,1754314241104,-151.18,0.0004639,2]
[377275675,1754314241118,-150.0,0.00046399,7]
[377275676,1754314241131,-205661.81589643,0.000464,31]
[377275677,1754314241150,-1730.79569943,0.000464,31]
[377275678,1754314241187,-411.33751989,0.000464,31]
[377275679,1754314241203,-28629.93631267,0.000464,31]
[377275680,1754314241219,-2592.29409162,0.000464,31]
[377275681,1754314241236,-925.571725,0.000464,31]
[377275682,1754314241258,-456.50000392,0.000464,31]
[377275683,1754314241274,-427.43062952,0.000464,31]
[377275684,1754314241291,-522.2799652,0.000464,31]
[377275685,1754314241308,-3575.170081,0.000464,31]
[377275686,1754314241323,-500.54291884,0.000464,31]
[377275688,1754314241376,-752.804609,0.000464,31]
[377275689,1754314241392,-6146.01914266,0.000464,31]
[377275694,1754314242710,-238.69737667,0.00037702,2]
[377275695,1754314242720,-4165.11463823,0.000464,31]
[377275696,1754314242732,-1931.58354777,0.000464,31]
[377275697,1754314242743,-5702.41323589,0.000464,31]
[377275698,1754314242754,-12901.77196281,0.000464,31]
[377275699,1754314242765,-1303.96954319,0.000464,31]
[377275700,1754314242780,-4405.77138875,0.000464,31]
[377275701,1754314242822,-876.36941063,0.000464,31]
[377275702,1754314242834,-10491.57210333,0.000464,31]
[377275703,1754314242845,-2839.0040698,0.000464,31]
[377275704,1754314242865,-5673.85483519,0.000464,31]
[377275705,1754314242885,-435.22115147,0.000464,31]
[377275706,1754314242924,-35048.37814907,0.000464,31]
[377275707,1754314242935,-11464.78696035,0.000464,31]
[377275708,1754314243078,-7437.80936504,0.000464,31]
[377275709,1754314243090,-2335.64256114,0.000464,31]
[377275710,1754314243120,-2275.0000002,0.000464,31]
[377275711,1754314243131,-302.0,0.000464,31]
[377275712,1754314243142,-596.01349862,0.000464,31]
[377275713,1754314243153,-28567.19,0.000464,31]
[377275714,1754314243164,-21276.6396725,0.000464,31]
[377275715,1754314243265,-10185.51432456,0.000464,31]
[377275716,1754314243276,-617.041611,0.000464,31]
[377275717,1754314243288,-563.75,0.000464,31]
[377275718,1754314243299,-259.75954728,0.000464,31]
[377275726,1754314244314,-1432.32386,0.000389,14]
[377275727,1754314244464,-2459.28614,0.000389,14]
[377275728,1754314244474,-539.33646756,0.000407,14]
[377275732,1754314246627,-238.69737667,0.0003775,2]
[377275733,1754314246637,-1415.83262333,0.000407,14]
[377275734,1754314247065,-267.37,0.000407,14]
[377275735,1754314247077,-468.54774262,0.000407,14]
[377275788,1754314283633,160.0,0.00033,6]
[377275789,1754314290326,160.0,0.00033,3]
[377275802,1754314379833,152.22,0.00013699,2]
[377275803,1754314385220,653.0,0.00030137,120]
[377275805,1754314390705,152.22,0.00027397,2]
[377275807,1754314410033,500.0,0.00024932,2]
[377275812,1754314422711,211.01140889,0.00033,7]
[377275821,1754314533579,160.0,0.00033,2]
[377275822,1754314535548,160.0,0.00033,3]
[377275823,1754314540204,250.0,0.00015,2]
[377275824,1754314541055,300.0,0.00017,2]
[377275845,1754314713140,394.0,0.0003117,2]
[377275850,1754314760494,267.87625085,0.00031014,2]
[377275855,1754314874901,160.0,0.00033,8]
[377275860,1754314925519,184.0,0.00033,29]
[377275864,1754314993722,160.0,0.00033,43]
[377275866,1754315018420,184.0,0.00033,39]
[377275869,1754315081010,310.31,0.00024658,120]
[377275885,1754315233681,753.62,0.00026986,120]
[377275889,1754315341892,150.0,0.00033,2]
[377275890,1754315357110,-394.0,0.0003312,2]
[377275891,1754315357132,-162.69256007,0.0003438,2]
[377275892,1754315357155,-1964.25501524,0.0003448,2]
[377275893,1754315357181,-394.0,0.0003508,2]
[377275894,1754315357208,-508.3,0.00036211,2]
[377275895,1754315357232,-300.0,0.00036432,120]
[377275896,1754315357255,-394.0,0.0003703,2]
[377275897,1754315357278,-916.50782269,0.0003748,120]
[377275914,1754315432060,-321.0327805,0.00034052,2]
[377275915,1754315432121,-263.3972195,0.00034052,2]
[377275916,1754315432130,-584.43,0.00035783,2]
[377275917,1754315432139,-299.5,0.00037469,120]
[377275918,1754315432149,-83.49217731,0.0003748,120]
[377275919,1754315432159,-150.0,0.0003748,120]
[377275920,1754315432168,-584.43,0.00037513,2]
[377275921,1754315432177,-189.17352101,0.00037617,120]
[377275923,1754315432186,-1000.0,0.00037754,120]
[377275925,1754315432196,-1000.0,0.00038028,120]
[377275926,1754315432205,-300.0,0.00038299,5]
[377275927,1754315432215,-127.95318447,0.000383,2]
[377275928,1754315432228,-2263.36832475,0.000383,2]
[377275929,1754315432237,-1000.0,0.00038302,120]
[377275930,1754315432247,-323.0,0.00038359,5]
[377275931,1754315432257,-151.0,0.0003836,14]
[377275932,1754315432266,-151.0,0.0003836,14]
[377275933,1754315432275,-151.0,0.0003836,14]
[377275934,1754315432285,-151.0,0.0003836,14]
[377275935,1754315432294,-266.506004,0.0003836,14]
[377275936,1754315432304,-266.506004,0.0003836,14]
[377275937,1754315432314,-162.713112,0.0003836,14]
[377275938,1754315432323,-162.713112,0.0003836,14]
[377275939,1754315432333,-8203.24303254,0.000384,15]
[377275940,1754315432348,-4796.75696746,0.000384,15]
[377275941,1754315432358,-1000.0,0.00038576,120]
[377275942,1754315432367,-276.4,0.00038582,15]
[377275943,1754315432377,-218.47378303,0.00038761,2]
[377275944,1754315432387,-1000.0,0.0003885,120]
[377275945,1754315432396,-203.7350789,0.000389,39]
[377275946,1754315432405,-394.0,0.0003899,2]
[377275947,1754315432415,-327.312,0.0003899,53]
[377275948,1754315432425,-1000.0,0.00039124,120]
[377275950,1754315432435,-500.0,0.00039222,5]
[377275951,1754315432445,-584.43,0.00039243,2]
[377275952,1754315432454,-1164.8,0.00039329,120]
[377275953,1754315432464,-154.06,0.00039332,2]
[377275954,1754315432476,-427.8,0.00039348,120]
[377275955,1754315432485,-209.73,0.00039364,2]
[377275956,1754315432499,-269.95,0.00039381,2]
[377275957,1754315432509,-151.0,0.00039381,2]
[377275958,1754315432518,-231.0,0.00039381,2]
[377275960,1754315432528,-1000.0,0.00039398,120]
[377275962,1754315432538,-11075.74517069,0.000394,30]
[377275964,1754315432550,-1924.25482931,0.000394,30]
[377275966,1754315432560,-156.79,0.00039425,30]
[377275968,1754315432569,-5000.0,0.00039439,120]
[377275969,1754315432578,-250.0,0.00039448,2]
[377275970,1754315432588,-175.0,0.00039477,7]
[377275971,1754315432598,-457.2201239,0.00039517,2]
[377275972,1754315432608,-154.06,0.00039529,2]
[377275973,1754315432617,-324.47,0.00039532,3]
[377275975,1754315432627,-203.73507886,0.00039567,40]
[377275976,1754315432636,-1000.0,0.00039672,120]
[377275977,1754315432645,-154.06,0.00039726,2]
[377275978,1754315432654,-500.0,0.0003977,5]
[377275979,1754315432664,-850.9165,0.000399,2]
[377275980,1754315432673,-1000.0,0.00039946,120]
[377275981,1754315432683,-276.4,0.00039983,15]
[377275982,1754315432692,-58089.0,0.0004,90]
[377275983,1754315432701,-1000.0,0.0004022,120]
[377275984,1754315432710,-203.73507886,0.00040233,42]
[377275985,1754315432720,-2366.90108279,0.000404,30]
[377275986,1754315432733,-10633.09891721,0.000404,30]
[377275987,1754315432743,-1000.0,0.00040493,120]
[377275988,1754315432752,-522.51720868,0.00040767,120]
[377275989,1754315432762,-203.73507886,0.000409,43]
[377275990,1754315432771,-394.0,0.0004094,2]
[377275991,1754315432781,-584.43,0.00040974,2]
[377275992,1754315432790,-152.22,0.00041096,2]
[377275993,1754315432800,-200.0,0.00041096,20]
[377275994,1754315432809,-153.01,0.00041286,2]
[377275995,1754315432819,-1000.0,0.00041323,2]
[377275996,1754315432829,-178.71,0.00041323,2]
[377275997,1754315432838,-276.4,0.00041383,120]
[377275998,1754315432848,-11000.00000006,0.000414,30]
[377275999,1754315432858,-153.01,0.00041493,2]
[377276000,1754315432868,-203.73507886,0.00041567,44]
[377276001,1754315432878,-2500.0,0.0004159,10]
[377276002,1754315432888,-338.47488926,0.00041599,120]
[377276003,1754315432897,-6389.94555558,0.00041599,15]
[377276004,1754315432906,-153.01,0.00041699,2]
[377276005,1754315432916,-338.47488926,0.00041931,120]
[377276006,1754315432925,-500.92915465,0.00041988,10]
[377276007,1754315432935,-160.0,0.00042,34]
[377276008,1754315432944,-160.0,0.00042,36]
[377276009,1754315432954,-151.0,0.00042,120]
[377276010,1754315432963,-162.73,0.0004204,2]
[377276011,1754315432973,-203.73507886,0.00042233,46]
[377276012,1754315432983,-338.47488926,0.00042262,120]
[377276013,1754315432992,-3883.0242,0.00042335,2]
[377276014,1754315433002,-6389.94555555,0.00042355,15]
[377276015,1754315433013,-3630.14,0.00042435,2]
[377276016,1754315433023,-200.0,0.00042454,2]
[377276017,1754315433033,-500.0,0.00042535,31]
[377276018,1754315433043,-500.0,0.00042535,31]
[377276019,1754315433052,-500.0,0.00042535,31]
[377276021,1754315433062,-331.26020324,0.00042535,31]
[377276022,1754315433072,-1000.0,0.00042536,30]
[377276023,1754315433081,-1000.0,0.00042536,30]
[377276024,1754315433091,-1000.0,0.00042536,30]
[377276025,1754315433100,-1000.0,0.00042536,30]
[377276026,1754315433109,-1000.0,0.00042536,30]
[377276027,1754315433119,-1000.0,0.00042536,30]
[377276028,1754315433128,-1000.0,0.00042536,30]
[377276030,1754315433137,-1000.0,0.00042536,30]
[377276032,1754315433147,-1000.0,0.00042536,30]
[377276034,1754315433157,-1000.0,0.00042536,30]
[377276036,1754315433166,-1000.0,0.00042536,30]
[377276038,1754315433176,-1000.0,0.00042536,30]
[377276040,1754315433186,-1000.0,0.00042536,30]
[377276042,1754315433195,-1000.0,0.00042536,30]
[377276044,1754315433206,-1000.0,0.00042536,30]
[377276046,1754315433215,-1000.0,0.00042536,30]
[377276048,1754315433227,-1000.0,0.00042536,30]
[377276050,1754315433236,-1000.0,0.00042536,30]
[377276052,1754315433246,-1000.0,0.00042536,30]
[377276054,1754315433256,-1000.0,0.00042536,30]
[377276056,1754315433266,-1000.0,0.00042536,30]
[377276057,1754315433275,-1000.0,0.00042536,30]
[377276058,1754315433285,-1000.0,0.00042536,30]
[377276059,1754315433294,-1000.0,0.00042536,30]
[377276060,1754315433303,-629.60776588,0.00042536,30]
[377276061,1754315433315,-370.39223412,0.00042536,30]
[377276062,1754315433325,-654.73447084,0.00042536,30]
[377276063,1754315433348,-345.26552916,0.00042536,30]
[377276064,1754315433611,-1000.0,0.00042536,30]
[377276065,1754315433689,-1000.0,0.00042536,30]
[377276066,1754315433699,-1000.0,0.00042536,30]
[377276067,1754315433708,-1000.0,0.00042536,30]
[377276068,1754315433717,-1000.0,0.00042536,30]
[377276069,1754315433733,-1000.0,0.00042536,30]
[377276070,1754315433743,-1000.0,0.00042536,30]
[377276071,1754315433752,-1000.0,0.00042536,30]
[377276072,1754315433762,-1000.0,0.00042536,30]
[377276073,1754315433772,-468.52011231,0.00042536,30]
[377276077,1754315437969,-340.7,0.00038312,2]
[377276078,1754315437982,-4128.67539607,0.00041323,2]
[377276079,1754315437995,-402.69229,0.00041323,2]
[377276080,1754315438030,-500.0,0.00041323,2]
[377276081,1754315438042,-1106.18880592,0.00041323,2]
[377276082,1754315438054,-3251.18363312,0.00041323,2]
[377276083,1754315438089,-10764.20987489,0.00041323,2]
[377276084,1754315438098,-203.47335592,0.00042535,31]
[377276085,1754315438108,-531.47988769,0.00042536,30]
[377276086,1754315438117,-1000.0,0.00042536,30]
[377276087,1754315438127,-1000.0,0.00042536,30]
[377276088,1754315438136,-1000.0,0.00042536,30]
[377276089,1754315438146,-1000.0,0.00042536,30]
[377276090,1754315438155,-388.03683071,0.00042536,30]
[377276091,1754315438167,-611.96316929,0.00042536,30]
[377276092,1754315438177,-1000.0,0.00042536,30]
[377276093,1754315438187,-1000.0,0.00042536,30]
[377276094,1754315438196,-1000.0,0.00042536,30]
[377276095,1754315438206,-1000.0,0.00042536,30]
[377276096,1754315438216,-1000.0,0.00042536,30]
[377276097,1754315438226,-1000.0,0.00042536,30]
[377276098,1754315438236,-1000.0,0.00042536,30]
[377276099,1754315438245,-1000.0,0.00042536,30]
[377276100,1754315438256,-1000.0,0.00042536,30]
[377276101,1754315438266,-1000.0,0.00042536,30]
[377276102,1754315438275,-1000.0,0.00042536,30]
[377276103,1754315438285,-1000.0,0.00042536,30]
[377276104,1754315438295,-1000.0,0.00042536,30]
[377276105,1754315438303,-1000.0,0.00042536,30]
[377276106,1754315438313,-1000.0,0.00042536,30]
[377276107,1754315438322,-1000.0,0.00042536,30]
[377276108,1754315438331,-1000.0,0.00042536,30]
[377276109,1754315438341,-1000.0,0.00042536,30]
[377276110,1754315438350,-1000.0,0.00042536,30]
[377276111,1754315438360,-1000.0,0.00042536,30]
[377276113,1754315438369,-1000.0,0.00042536,30]
[377276114,1754315438379,-1000.0,0.00042536,30]
[377276115,1754315438388,-1000.0,0.00042536,30]
[377276116,1754315438397,-1000.0,0.00042536,30]
[377276117,1754315438406,-1000.0,0.00042536,30]
[377276118,1754315438416,-1000.0,0.00042536,30]
[377276119,1754315438426,-1000.0,0.00042536,30]
[377276121,1754315438435,-1000.0,0.00042536,30]
[377276123,1754315438444,-1000.0,0.00042536,30]
[377276125,1754315438454,-1000.0,0.00042536,30]
[377276127,1754315438463,-1000.0,0.00042536,30]
[377276129,1754315438474,-1000.0,0.00042536,30]
[377276131,1754315438486,-1000.0,0.00042536,30]
[377276133,1754315438499,-1000.0,0.00042536,30]
[377276135,1754315438510,-1000.0,0.00042536,30]
[377276138,1754315438519,-1000.0,0.00042536,30]
[377276140,1754315438528,-1000.0,0.00042536,30]
[377276141,1754315438538,-1000.0,0.00042536,30]
[377276144,1754315438547,-1000.0,0.00042536,30]
[377276146,1754315438557,-1000.0,0.00042536,30]
[377276148,1754315438566,-606.0,0.00042536,30]
[377276150,1754315438576,-500.0,0.00042573,10]
[377276153,1754315438586,-441.28308254,0.00042573,2]
[377276155,1754315438596,-150.0,0.00042573,3]
[377276157,1754315438605,-338.47488926,0.00042594,120]
[377276159,1754315438615,-584.43,0.00042704,120]
[377276161,1754315438624,-2512.47,0.00042707,2]
[377276163,1754315438633,-150.99,0.00042707,2]
[377276165,1754315438642,-2148.30784079,0.00042707,2]
[377276350,1754315440325,-253.7672208,0.00042707,2]
[377276354,1754315440351,-798.36076063,0.00042707,2]
[377276360,1754315440405,-2459.81417778,0.00042707,2]
[377276362,1754315440415,-540.96920722,0.00042707,30]
[377276365,1754315440427,-1175.39079278,0.00042707,30]
[377276367,1754315440437,-276.4,0.00042784,120]
[377276369,1754315440446,-394.0,0.000429,2]
[377276371,1754315440455,-203.73507886,0.000429,47]
[377276373,1754315440465,-338.47488926,0.00042926,120]
[377276375,1754315440474,-160.0,0.00043,44]
[377276377,1754315440489,-184.0,0.00043,42]
[377276378,1754315440499,-183.64,0.00043,90]
[377276381,1754315440509,-2249.13288532,0.0004311,15]
[377276383,1754315440521,-3449.3412377,0.0004311,15]
[377276391,1754315440597,-370.07809758,0.0004311,15]
[377276393,1754315440609,-321.39333495,0.0004311,15]
[377276395,1754315440618,-1000.0,0.00043121,10]
[377276397,1754315440628,-338.47488926,0.00043257,120]
[377276399,1754315440637,-203.73507886,0.00043567,48]
[377276401,1754315440646,-338.47488926,0.00043589,120]
[377276403,1754315440656,-1500.0,0.00043668,10]
[377276405,1754315440666,-6389.94555555,0.00043866,15]
[377276407,1754315440675,-338.47488926,0.0004392,120]
[377276409,1754315440685,-340.7,0.00043938,14]
[377276411,1754315440695,-159.66,0.00043951,14]
[377276413,1754315440703,-160.0,0.00044,60]
[377276415,1754315440712,-507.0,0.00044046,10]
[377276417,1754315440721,-507.0,0.00044046,10]
[377276419,1754315440730,-332.92,0.00044141,30]
[377276421,1754315440739,-358.93,0.00044141,30]
[377276423,1754315440748,-276.4,0.00044185,120]
[377276425,1754315440757,-2000.0,0.00044216,10]
[377276427,1754315440766,-567.01898378,0.0004422,2]
[377276429,1754315440776,-378.01265585,0.0004422,2]
[377276431,1754315440785,-203.73507886,0.00044233,50]
[377276433,1754315440794,-1164.8,0.00044245,120]
[377276435,1754315440803,-338.47488926,0.00044252,120]
[377276437,1754315440813,-584.43,0.00044434,120]
[377276439,1754315440822,-220.86,0.00044489,120]
[377276441,1754315440832,-3019.43201203,0.00044534,120]
[377276443,1754315440841,-338.47488926,0.00044584,120]
[377276446,1754315440855,-150.0,0.00044599,2]
[377276448,1754315440865,-6389.94555555,0.00044622,15]
[377276450,1754315440874,-291.70729827,0.00044637,10]
[377276452,1754315440887,-215.29270173,0.00044637,10]
[377276454,1754315440897,-2500.0,0.00044764,10]
[377276456,1754315440907,-150.0,0.00044846,2]
[377276458,1754315440918,-394.0,0.0004485,30]
[377276460,1754315440928,-203.73507886,0.000449,51]
[377276462,1754315440939,-338.47488926,0.00044915,120]
[377276464,1754315440949,-152.0,0.00045,120]
[377276467,1754315440959,-160.0,0.00045,75]
[377276469,1754315440968,-1000.0,0.00045,7]
[377276471,1754315440978,-151.0,0.00045,120]
[377276473,1754315440988,-841.59890878,0.00045,10]
[377276475,1754315440997,-500.0,0.00045,10]
[377276477,1754315441006,-500.0,0.0004505,10]
[377276479,1754315441015,-500.0,0.0004505,10]
[377276481,1754315441026,-500.0,0.0004505,10]
[377276483,1754315441035,-1478.74193045,0.00045212,15]
[377276485,1754315441045,-507.0,0.00045228,10]
[377276487,1754315441055,-338.47488926,0.00045247,120]
[377276489,1754315441065,-209.73,0.00045269,2]
[377276491,1754315441075,-340.7,0.00045304,14]
[377276493,1754315441084,-2500.0,0.00045312,10]
[377276495,1754315441094,-159.66,0.0004533,14]
[377276497,1754315441103,-288.73031273,0.00045372,28]
[377276499,1754315441114,-3650.75648893,0.00045377,15]
[377276501,1754315441126,-2739.18906662,0.00045377,15]
[377276504,1754315441136,-151.65,0.00045469,2]
[377276506,1754315441145,-150.49,0.00045469,2]
[377276508,1754315441155,-7.79552338,0.00045472,50]
[377276517,1754315441238,-436.04183848,0.00045472,50]
[377276519,1754315441248,-457.45816152,0.00045566,15]
[377276521,1754315441260,-659.00497006,0.00045566,15]
[377276524,1754315441271,-362.2787988,0.00045566,15]
[377276526,1754315441280,-87.7212012,0.00045567,52]
[377276528,1754315441291,-116.01387766,0.00045567,52]
[377276530,1754315441301,-300.52266287,0.00045579,120]
[377276532,1754315441313,-37.95222639,0.00045579,120]
[377276534,1754315441322,-276.4,0.00045586,120]
[377276536,1754315441331,-456.5102112,0.00045598,10]
[377276724,1754315443184,-209.0,0.00042987,2]
[377276726,1754315443198,-47.19397987,0.00045598,10]
[377276728,1754315443209,-687.80231262,0.00045598,10]
[377276731,1754315443223,-312.19768738,0.00045598,10]
[377276733,1754315443235,-1000.0,0.00045598,10]
[377276735,1754315443245,-1000.0,0.000456,7]
[377276737,1754315443255,-150.0,0.00045757,2]
[377276739,1754315443264,-288.73031269,0.00045805,28]
[377276741,1754315443275,-507.0,0.00045819,10]
[377276743,1754315443285,-220.86,0.00045859,120]
[377276745,1754315443295,-4638.46418,0.0004586,30]
[377276747,1754315443305,-151.0,0.000459,14]
[377276750,1754315443315,-151.0,0.000459,14]
[377276752,1754315443324,-151.0,0.000459,14]
[377276754,1754315443334,-151.0,0.000459,14]
[377276755,1754315443344,-266.506004,0.000459,14]
[377276758,1754315443353,-266.506004,0.000459,14]
[377276760,1754315443363,-162.713112,0.000459,14]
[377276762,1754315443373,-162.713112,0.000459,14]
[377276764,1754315443382,-400.0,0.000459,16]
[377276766,1754315443392,-338.47488926,0.0004591,120]
[377276768,1754315443401,-19258.9908706,0.00045911,3]
[377276769,1754315443411,-4638.46418,0.0004592,30]
[377276772,1754315443420,-1478.74193038,0.0004592,15]
[377276773,1754315443430,-150.0,0.00045935,2]
[377276776,1754315443440,-4638.46418,0.0004599,30]
[377276777,1754315443449,-160.0,0.00046,120]
[377276780,1754315443459,-3073.67158358,0.00046,120]
[377276781,1754315443469,-3073.54,0.00046,120]
[377276784,1754315443479,-3073.54,0.00046,120]
[377276785,1754315443490,-3073.54,0.00046,120]
[377276787,1754315443502,-3073.54,0.00046,120]
[377276791,1754315443513,-376.586706,0.00046,29]
[377276793,1754315443522,-1796.91454962,0.00046,120]
[377276798,1754315443534,-1796.91,0.00046,120]
[377276801,1754315443544,-1796.91,0.00046,120]
[377276804,1754315443553,-1796.91,0.00046,120]
[377276807,1754315443563,-1796.91,0.00046,120]
[377276810,1754315443573,-150.0,0.00046077,2]
[377276812,1754315443584,-876.21753588,0.00046094,2]
[377276814,1754315443594,-152.0,0.000461,120]
[377276816,1754315443604,-3073.54,0.000461,120]
[377276818,1754315443613,-3073.54,0.000461,120]
[377276820,1754315443623,-1796.91,0.000461,120]
[377276822,1754315443632,-1796.91,0.000461,120]
[377276824,1754315443642,-6389.94555555,0.00046133,15]
[377276826,1754315443651,-1500.0,0.00046146,10]
[377276828,1754315443661,-637.32012332,0.00046146,10]
[377276830,1754315443670,-584.43,0.00046165,120]
[377276832,1754315443679,-169.43519901,0.00046191,15]
[377276834,1754315443689,-2614.51239126,0.00046191,18]
[377276836,1754315443699,-150.0,0.00046199,2]
[377276838,1754315443709,-3073.54,0.000462,120]
[377276840,1754315443719,-3073.54,0.000462,120]
[377276842,1754315443729,-1796.91,0.000462,120]
[377276844,1754315443740,-1796.91,0.000462,120]
[377276846,1754315443750,-1796.91,0.000462,120]
[377276848,1754315443759,-203.73507886,0.00046233,54]
[377276850,1754315443769,-288.73031269,0.00046237,28]
[377276852,1754315443779,-338.47488926,0.00046242,120]
[377276854,1754315443789,-1478.74193038,0.00046275,15]
[377276856,1754315443799,-19258.9908706,0.00046276,3]
[377276858,1754315443808,-301.63674388,0.00046279,120]
[377276860,1754315443817,-219.56,0.00046286,120]
[377276862,1754315443827,-2358.58,0.00046286,120]
[377276864,1754315443837,-1179.29,0.00046286,120]
[377276866,1754315443846,-1179.29,0.00046286,120]
[377276868,1754315443857,-1179.29,0.00046286,120]
[377276870,1754315443867,-1179.29,0.00046286,120]
[377276872,1754315443877,-1179.29,0.00046286,120]
[377276874,1754315443886,-1179.29,0.00046286,120]
[377276877,1754315443896,-1179.29,0.00046286,120]
[377276879,1754315443907,-1179.29,0.00046286,120]
[377276881,1754315443916,-1179.29,0.00046286,120]